fUST/lending_fUST_20250122
["ID","MTS","AMOUNT","RATE_DAILY","PERIOD"]
[349938005,1737522642202,-3194.76,0.00021917,3]
[349938006,1737522642211,-500.0,0.00021917,3]
[349938007,1737522642222,-500.0,0.00021917,3]
[349938008,1737522642233,-663.14,0.00021917,3]
[349938009,1737522642242,-500.0,0.00021917,3]
[349938010,1737522642251,-1596.03,0.00021917,3]
[349938011,1737522642261,-1611.64,0.00021917,3]
[349938012,1737522642271,-8127.96,0.00021917,3]
[349938013,1737522642280,-500.0,0.00021917,3]
[349938014,1737522642290,-500.0,0.00021917,3]
[349938015,1737522642300,-500.0,0.00021917,3]
[349938016,1737522642309,-995.76,0.00021917,3]
[349938017,1737522642319,-1636.63,0.00021917,3]
[349938018,1737522642328,-1849.06,0.00021917,3]
[349938019,1737522642338,-500.0,0.00021917,3]
[349938020,1737522642347,-500.0,0.00021917,3]
[349938021,1737522642356,-500.0,0.00021917,3]
[349938022,1737522642365,-500.0,0.00021917,3]
[349938023,1737522642375,-559.97880715,0.00021917,3]
[349938024,1737522642385,-500.0,0.00021917,3]
[349938025,1737522642394,-500.0,0.00021917,3]
[349938026,1737522642405,-500.0,0.00021917,3]
[349938027,1737522642416,-1332.86,0.00021917,3]
[349938028,1737522642426,-500.0,0.00021917,3]
[349938029,1737522642504,-772.01,0.00021917,3]
[349938030,1737522642514,-985.03,0.00021917,3]
[349938031,1737522642525,-500.0,0.00021917,3]
[349938032,1737522642534,-500.0,0.00021917,3]
[349938033,1737522642546,-500.0,0.00021917,3]
[349938034,1737522642557,-500.0,0.00021917,3]
[349938035,1737522642567,-500.0,0.00021917,3]
[349938036,1737522642579,-3429.85,0.00021917,3]
[349938037,1737522642588,-940.7,0.00021917,3]
[349938038,1737522642599,-500.0,0.00021917,3]
[349938039,1737522642610,-615.07,0.00021917,3]
[349938040,1737522642620,-500.0,0.00021917,3]
[349938041,1737522642629,-535.22,0.00021917,3]
[349938042,1737522642641,-500.0,0.00021917,3]
[349938043,1737522642651,-654.2,0.00021917,3]
[349938044,1737522642660,-500.0,0.00021917,3]
[349938045,1737522642669,-500.0,0.00021917,3]
[349938046,1737522642678,-164.78351878,0.00021954,7]
[349938047,1737522642688,-151.0,0.00021957,5]
[349938048,1737522642698,-1200.0,0.00021967,2]
[349938049,1737522642708,-503.01733109,0.00021973,2]
[349938050,1737522642717,-500.0,0.00021973,2]
[349938051,1737522642728,-2000.0,0.00022,2]
[349938052,1737522642739,-239.000001,0.00022,3]
[349938053,1737522642748,-353.8915511,0.00022,2]
[349938054,1737522642758,-353.8915511,0.00022,2]
[349938055,1737522642767,-353.8915511,0.00022,2]
[349938056,1737522642778,-151.0,0.00022,10]
[349938057,1737522642787,-354.8604128,0.00022,2]
[349938058,1737522642796,-151.0,0.00022,3]
[349938059,1737522642806,-160.751503,0.00022,5]
[349938060,1737522642815,-521.69336106,0.00022003,3]
[349938061,1737522642825,-567.07286283,0.00022052,2]
[349938062,1737522642834,-500.0,0.00022054,3]
[349938063,1737522642844,-500.0,0.00022054,3]
[349938064,1737522642855,-500.0,0.00022054,3]
[349938065,1737522642865,-620.50885789,0.00022054,3]
[349938066,1737522642874,-500.0,0.00022054,3]
[349938067,1737522642884,-666.04,0.00022054,3]
[349938068,1737522642894,-852.64,0.00022054,3]
[349938069,1737522642904,-303.02447263,0.00022054,3]
[349938070,1737522642914,-500.0,0.00022054,3]
[349938071,1737522642925,-500.0,0.00022054,3]
[349938072,1737522642934,-502.94266328,0.00022054,3]
[349938073,1737522642943,-402.45424366,0.00022054,3]
[349938074,1737522642952,-500.0,0.00022054,3]
[349938075,1737522642962,-500.0,0.00022054,3]
[349938076,1737522642971,-500.0,0.00022054,3]
[349938077,1737522642980,-500.0,0.00022054,3]
[349938078,1737522642990,-500.0,0.00022054,3]
[349938079,1737522642999,-630.63,0.00022054,3]
[349938080,1737522643010,-508.46856378,0.00022054,3]
[349938082,1737522643020,-717.29,0.00022054,3]
[349938083,1737522643029,-150.06286061,0.00022054,3]
[349938085,1737522643039,-528.04,0.00022054,3]
[349938086,1737522643049,-500.0,0.00022054,3]
[349938087,1737522643058,-500.0,0.00022054,3]
[349938088,1737522643069,-500.0,0.00022054,3]
[349938089,1737522643078,-500.0,0.00022054,3]
[349938090,1737522643088,-500.0,0.00022054,3]
[349938091,1737522643098,-284.4107112,0.00022054,3]
[349938092,1737522643107,-500.0,0.00022054,3]
[349938093,1737522643116,-500.0,0.00022054,3]
[349938094,1737522643126,-500.0,0.00022054,3]
[349938095,1737522643136,-500.0,0.00022054,3]
[349938096,1737522643146,-500.0,0.00022054,3]
[349938097,1737522643155,-500.0,0.00022054,3]
[349938098,1737522643165,-500.0,0.00022054,3]
[349938099,1737522643175,-611.33576465,0.00022054,3]
[349938100,1737522643184,-926.68,0.00022054,3]
[349938101,1737522643194,-251.85555499,0.00022054,3]
[349938102,1737522643203,-500.0,0.00022054,3]
[349938103,1737522643213,-349.65140026,0.00022054,3]
[349938104,1737522643223,-500.0,0.00022054,3]
[349938105,1737522643232,-500.0,0.00022054,3]
[349938106,1737522643242,-500.0,0.00022054,3]
[349938107,1737522643251,-500.0,0.00022054,3]
[349938108,1737522643260,-500.0,0.00022054,3]
[349938109,1737522643270,-763.48,0.00022054,3]
[349938110,1737522643279,-500.0,0.00022054,3]
[349938111,1737522643289,-500.0,0.00022054,3]
[349938112,1737522643298,-566.44,0.00022054,3]
[349938113,1737522643308,-500.0,0.00022054,3]
[349938114,1737522643318,-500.0,0.00022054,3]
[349938115,1737522643328,-500.0,0.00022054,3]
[349938116,1737522643338,-500.0,0.00022054,3]
[349938117,1737522643347,-500.0,0.00022054,3]
[349938118,1737522643357,-500.0,0.00022054,3]
[349938120,1737522643366,-500.0,0.00022054,3]
[349938122,1737522643375,-500.0,0.00022054,3]
[349938124,1737522643385,-262.78936139,0.00022054,3]
[349938126,1737522643395,-535.06,0.00022054,3]
[349938128,1737522643404,-500.0,0.00022054,3]
[349938130,1737522643413,-187.7885143,0.00022054,3]
[349938132,1737522643424,-500.0,0.00022054,3]
[349938134,1737522643433,-500.0,0.00022054,3]
[349938136,1737522643443,-500.0,0.00022054,3]
[349938138,1737522643452,-638.34,0.00022054,3]
[349938140,1737522643461,-500.0,0.00022054,3]
[349938142,1737522643471,-500.0,0.00022054,3]
[349938144,1737522643480,-500.0,0.00022054,3]
[349938146,1737522643490,-629.82962211,0.00022054,3]
[349938148,1737522643500,-500.0,0.00022054,3]
[349938150,1737522643511,-500.0,0.00022054,3]
[349938152,1737522643521,-882.26,0.00022054,3]
[349938154,1737522643530,-500.0,0.00022054,3]
[349938156,1737522643540,-500.0,0.00022054,3]
[349938158,1737522643549,-500.0,0.00022054,3]
[349938160,1737522643558,-1091.1,0.00022054,3]
[349938161,1737522643567,-186.48804255,0.00022054,3]
[349938164,1737522643578,-500.0,0.00022054,3]
[349938165,1737522643588,-649.55,0.00022054,3]
[349938167,1737522643598,-500.0,0.00022054,3]
[349938170,1737522643607,-500.0,0.00022054,3]
[349938171,1737522643616,-500.0,0.00022054,3]
[349938173,1737522643626,-500.0,0.00022054,3]
[349938175,1737522643635,-500.0,0.00022054,3]
[349938177,1737522643645,-500.0,0.00022054,3]
[349938179,1737522643655,-500.0,0.00022054,3]
[349938181,1737522643664,-500.0,0.00022054,3]
[349938184,1737522643674,-500.0,0.00022054,3]
[349938186,1737522643684,-204.9753616,0.00022054,3]
[349938188,1737522643694,-500.0,0.00022054,3]
[349938190,1737522643703,-500.0,0.00022054,3]
[349938192,1737522643713,-500.0,0.00022054,3]
[349938194,1737522643722,-551.09,0.00022054,3]
[349938195,1737522643731,-500.0,0.00022054,3]
[349938197,1737522643741,-500.0,0.00022054,3]
[349938198,1737522643751,-500.0,0.00022054,3]
[349938199,1737522643760,-500.0,0.00022054,3]
[349938200,1737522643839,-391.06569436,0.00022054,3]
[349938201,1737522643854,-700.49,0.00022054,3]
[349938202,1737522643864,-500.0,0.00022054,3]
[349938203,1737522643874,-500.0,0.00022054,3]
[349938204,1737522643883,-1397.0,0.00022054,3]
[349938205,1737522643894,-526.67923138,0.00022054,3]
[349938206,1737522643904,-500.0,0.00022054,3]
[349938207,1737522643914,-500.0,0.00022054,3]
[349938209,1737522643924,-783.27,0.00022054,3]
[349938211,1737522643934,-951.62,0.00022054,3]
[349938213,1737522643943,-500.0,0.00022054,3]
[349938215,1737522643952,-500.0,0.00022054,3]
[349938217,1737522643962,-500.0,0.00022054,3]
[349938219,1737522643971,-500.0,0.00022054,3]
[349938221,1737522643981,-500.0,0.00022054,3]
[349938223,1737522643991,-500.0,0.00022054,3]
[349938225,1737522644000,-500.0,0.00022054,3]
[349938227,1737522644010,-500.0,0.00022054,3]
[349938229,1737522644020,-502.62,0.00022054,3]
[349938231,1737522644030,-500.0,0.00022054,3]
[349938233,1737522644040,-500.0,0.00022054,3]
[349938235,1737522644050,-500.0,0.00022054,3]
[349938237,1737522644059,-500.0,0.00022054,3]
[349938238,1737522644069,-500.0,0.00022054,3]
[349938239,1737522644078,-2620.52,0.00022054,3]
[349938240,1737522644088,-500.0,0.00022054,3]
[349938241,1737522644098,-500.0,0.00022054,3]
[349938242,1737522644108,-500.0,0.00022054,3]
[349938243,1737522644117,-500.0,0.00022054,3]
[349938244,1737522644126,-500.0,0.00022054,3]
[349938245,1737522644135,-500.0,0.00022054,3]
[349938246,1737522644145,-500.0,0.00022054,3]
[349938247,1737522644155,-895.22,0.00022054,3]
[349938248,1737522644165,-500.0,0.00022054,3]
[349938249,1737522644175,-859.69,0.00022054,3]
[349938250,1737522644184,-500.0,0.00022054,3]
[349938251,1737522644195,-500.0,0.00022054,3]
[349938252,1737522644204,-1368.61,0.00022054,3]
[349938253,1737522644214,-500.0,0.00022054,3]
[349938254,1737522644223,-500.0,0.00022054,3]
[349938255,1737522644232,-500.0,0.00022054,3]
[349938256,1737522644242,-500.0,0.00022054,3]
[349938257,1737522644252,-517.51477687,0.00022054,3]
[349938258,1737522644262,-1432.18,0.00022054,3]
[349938259,1737522644272,-151.0,0.00022054,6]
[349938260,1737522644281,-606.42,0.00022054,3]
[349938261,1737522644291,-500.0,0.00022054,3]
[349938262,1737522644300,-500.0,0.00022054,3]
[349938263,1737522644310,-500.0,0.00022054,3]
[349938264,1737522644320,-500.0,0.00022054,3]
[349938265,1737522644329,-500.0,0.00022054,3]
[349938266,1737522644338,-928.6,0.00022054,3]
[349938267,1737522644348,-500.0,0.00022054,3]
[349938268,1737522644357,-533.38,0.00022054,3]
[349938269,1737522644366,-585.75,0.00022054,3]
[349938270,1737522644376,-500.0,0.00022054,3]
[349938271,1737522644387,-812.47,0.00022054,3]
[349938272,1737522644396,-500.0,0.00022054,3]
[349938273,1737522644406,-500.0,0.00022054,3]
[349938274,1737522644416,-1303.23,0.00022054,3]
[349938275,1737522644426,-500.0,0.00022054,3]
[349938276,1737522644435,-500.0,0.00022054,3]
[349938277,1737522644447,-964.39,0.00022054,3]
[349938278,1737522644456,-1410.5,0.00022054,3]
[349938279,1737522644466,-500.0,0.00022054,3]
[349938280,1737522644475,-500.0,0.00022054,3]
[349938281,1737522644484,-500.0,0.00022054,3]
[349938282,1737522644494,-799.23,0.00022054,3]
[349938283,1737522644503,-500.0,0.00022054,3]
[349938284,1737522644513,-764.42,0.00022054,3]
[349938285,1737522644522,-500.0,0.00022054,3]
[349938286,1737522644531,-551.37,0.00022054,3]
[349938287,1737522644541,-1030.09,0.00022054,3]
[349938288,1737522644550,-2744.4,0.00022054,3]
[349938289,1737522644560,-500.0,0.00022054,3]
[349938290,1737522644570,-717.65,0.00022054,3]
[349938291,1737522644579,-500.0,0.00022054,3]
[349938292,1737522644589,-507.70890174,0.00022054,3]
[349938293,1737522644598,-2873.07,0.00022054,3]
[349938294,1737522644608,-500.0,0.00022054,3]
[349938295,1737522644618,-376.37495816,0.00022054,3]
[349938296,1737522644627,-564.94,0.00022054,3]
[349938297,1737522644637,-500.0,0.00022054,3]
[349938298,1737522644646,-926.76,0.00022054,3]
[349938299,1737522644656,-500.0,0.00022054,3]
[349938300,1737522644665,-500.0,0.00022054,3]
[349938301,1737522644676,-500.0,0.00022054,3]
[349938302,1737522644685,-500.0,0.00022054,3]
[349938303,1737522644694,-2665.98,0.00022054,3]
[349938304,1737522644704,-1471.16,0.00022054,3]
[349938305,1737522644713,-500.0,0.00022054,3]
[349938306,1737522644722,-500.0,0.00022054,3]
[349938307,1737522644731,-500.0,0.00022054,3]
[349938308,1737522644741,-500.0,0.00022054,3]
[349938309,1737522644750,-10732.32,0.00022054,3]
[349938310,1737522644759,-500.0,0.00022054,3]
[349938311,1737522644768,-1089.15,0.00022054,3]
[349938312,1737522644777,-1315.55,0.00022054,3]
[349938313,1737522644786,-500.0,0.00022054,3]
[349938314,1737522644796,-500.0,0.00022054,3]
[349938315,1737522644805,-500.0,0.00022054,3]
[349938316,1737522644814,-500.0,0.00022054,3]
[349938317,1737522644823,-2470.27,0.00022054,3]
[349938318,1737522644833,-500.0,0.00022054,3]
[349938319,1737522644847,-981.23,0.00022054,3]
[349938320,1737522644857,-500.0,0.00022054,3]
[349938321,1737522644866,-3920.54,0.00022054,3]
[349938322,1737522644876,-500.0,0.00022054,3]
[349938323,1737522644886,-1911.55,0.00022054,3]
[349938324,1737522644895,-500.0,0.00022054,3]
[349938325,1737522644904,-1155.53,0.00022054,3]
[349938326,1737522644914,-500.0,0.00022054,3]
[349938327,1737522644926,-500.0,0.00022054,3]
[349938328,1737522644935,-1936.82,0.00022054,3]
[349938329,1737522644946,-500.0,0.00022054,3]
[349938330,1737522644956,-1773.31,0.00022054,2]
[349938331,1737522644965,-150.20942697,0.00022054,3]
[349938332,1737522644974,-500.0,0.00022054,3]
[349938333,1737522644985,-500.0,0.00022054,3]
[349938334,1737522644996,-48646.51,0.00022054,3]
[349938335,1737522645072,-597.06208842,0.00022054,3]
[349938336,1737522645082,-3199.08,0.00022054,3]
[349938337,1737522645092,-500.0,0.00022054,3]
[349938338,1737522645101,-11558.89,0.00022054,3]
[349938339,1737522645111,-500.0,0.00022054,3]
[349938340,1737522645120,-500.0,0.00022054,3]
[349938341,1737522645130,-500.0,0.00022054,3]
[349938342,1737522645139,-2997.51,0.00022054,3]
[349938343,1737522645148,-500.0,0.00022054,3]
[349938344,1737522645158,-715.59,0.00022054,3]
[349938345,1737522645167,-935.44,0.00022054,3]
[349938346,1737522645176,-508.69,0.00022054,3]
[349938347,1737522645186,-509.66055487,0.00022054,3]
[349938348,1737522645195,-500.0,0.00022054,3]
[349938349,1737522645205,-500.0,0.00022054,3]
[349938350,1737522645214,-1059.79,0.00022054,3]
[349938351,1737522645225,-500.0,0.00022054,3]
[349938352,1737522645234,-1844.51,0.00022054,3]
[349938353,1737522645244,-688.01,0.00022054,3]
[349938354,1737522645253,-150.19906902,0.00022054,3]
[349938355,1737522645262,-150.87666167,0.00022054,3]
[349938356,1737522645272,-500.0,0.00022054,3]
[349938357,1737522645282,-500.0,0.00022054,3]
[349938358,1737522645292,-500.0,0.00022054,3]
[349938359,1737522645302,-500.0,0.00022054,3]
[349938360,1737522645311,-500.0,0.00022054,3]
[349938361,1737522645321,-500.0,0.00022054,3]
[349938362,1737522645331,-901.63,0.00022054,3]
[349938363,1737522645340,-500.0,0.00022054,3]
[349938364,1737522645350,-3809.82,0.00022054,3]
[349938365,1737522645360,-500.0,0.00022054,3]
[349938366,1737522645369,-336.21464571,0.00022054,3]
[349938367,1737522645378,-618.49,0.00022054,3]
[349938368,1737522645388,-500.0,0.00022054,3]
[349938369,1737522645398,-1065.73,0.00022054,3]
[349938370,1737522645408,-500.0,0.00022054,3]
[349938371,1737522645416,-500.0,0.00022054,3]
[349938372,1737522645425,-386.00369179,0.00022054,3]
[349938373,1737522645435,-500.0,0.00022054,3]
[349938374,1737522645444,-3194.76,0.00022054,3]
[349938375,1737522645454,-500.0,0.00022054,3]
[349938376,1737522645463,-503.51885228,0.00022054,3]
[349938377,1737522645473,-663.14,0.00022054,3]
[349938378,1737522645482,-1596.03,0.00022054,3]
[349938379,1737522645491,-500.0,0.00022054,3]
[349938380,1737522645500,-1611.64,0.00022054,3]
[349938381,1737522645510,-8127.96,0.00022054,3]
[349938382,1737522645519,-500.0,0.00022054,3]
[349938383,1737522645529,-500.0,0.00022054,3]
[349938384,1737522645538,-500.0,0.00022054,3]
[349938385,1737522645548,-995.76,0.00022054,3]
[349938386,1737522645557,-1636.63,0.00022054,3]
[349938387,1737522645566,-1849.06,0.00022054,3]
[349938388,1737522645575,-500.0,0.00022054,3]
[349938389,1737522645584,-500.0,0.00022054,3]
[349938390,1737522645593,-151.15048436,0.00022054,3]
[349938391,1737522645603,-450.44810997,0.00022054,3]
[349938392,1737522645612,-500.0,0.00022054,3]
[349938393,1737522645621,-509.42641806,0.00022054,3]
[349938394,1737522645631,-500.0,0.00022054,3]
[349938395,1737522645640,-500.0,0.00022054,3]
[349938396,1737522645650,-1332.86,0.00022054,3]
[349938397,1737522645659,-500.0,0.00022054,3]
[349938398,1737522645668,-772.01,0.00022054,3]
[349938399,1737522645678,-985.03,0.00022054,3]
[349938400,1737522645687,-500.0,0.00022054,3]
[349938401,1737522645696,-500.0,0.00022054,3]
[349938402,1737522645706,-500.0,0.00022054,3]
[349938403,1737522645715,-500.0,0.00022054,3]
[349938404,1737522645724,-3429.85,0.00022054,3]
[349938405,1737522645734,-940.7,0.00022054,3]
[349938406,1737522645743,-500.0,0.00022054,3]
[349938407,1737522645753,-615.07,0.00022054,3]
[349938408,1737522645762,-535.22,0.00022054,3]
[349938409,1737522645771,-500.0,0.00022054,3]
[349938410,1737522645781,-654.2,0.00022054,3]
[349938411,1737522645790,-500.0,0.00022054,3]
[349938412,1737522645799,-500.0,0.00022054,3]
[349938413,1737522645808,-500.68758936,0.00022073,2]
[349938414,1737522645818,-500.0,0.00022073,2]
[349938415,1737522645827,-501.79502997,0.00022073,2]
[349938416,1737522645836,-151.28154274,0.00022073,2]
[349938417,1737522645847,-789.11059231,0.00022085,2]
[349938418,1737522645856,-1947.20340671,0.00022091,2]
[349938419,1737522645866,-521.69336106,0.00022107,3]
[349938420,1737522645875,-163.578549,0.00022174,2]
[349938421,1737522645884,-500.0,0.00022191,3]
[349938422,1737522645894,-500.0,0.00022191,3]
[349938423,1737522645904,-500.0,0.00022191,3]
[349938424,1737522645913,-500.0,0.00022191,3]
[349938425,1737522645923,-666.04,0.00022191,3]
[349938426,1737522645933,-852.64,0.00022191,3]
[349938427,1737522645943,-500.0,0.00022191,3]
[349938428,1737522645952,-500.0,0.00022191,3]
[349938429,1737522645961,-500.0,0.00022191,3]
[349938430,1737522645971,-500.0,0.00022191,3]
[349938431,1737522645980,-500.0,0.00022191,3]
[349938432,1737522645989,-500.0,0.00022191,3]
[349938433,1737522645999,-503.41541976,0.00022191,3]
[349938434,1737522646007,-630.63,0.00022191,3]
[349938435,1737522646017,-717.29,0.00022191,3]
[349938436,1737522646026,-528.04,0.00022191,3]
[349938437,1737522646035,-500.0,0.00022191,3]
[349938438,1737522646045,-500.0,0.00022191,3]
[349938439,1737522646054,-500.0,0.00022191,3]
[349938440,1737522646064,-500.0,0.00022191,3]
[349938441,1737522646074,-500.0,0.00022191,3]
[349938442,1737522646084,-500.0,0.00022191,3]
[349938443,1737522646093,-500.0,0.00022191,3]
[349938444,1737522646103,-500.0,0.00022191,3]
[349938445,1737522646173,-500.0,0.00022191,3]
[349938446,1737522646183,-500.0,0.00022191,3]
[349938447,1737522646192,-500.0,0.00022191,3]
[349938448,1737522646202,-500.0,0.00022191,3]
[349938449,1737522646211,-926.68,0.00022191,3]
[349938450,1737522646221,-500.0,0.00022191,3]
[349938451,1737522646231,-500.0,0.00022191,3]
[349938452,1737522646241,-500.0,0.00022191,3]
[349938453,1737522646251,-500.0,0.00022191,3]
[349938454,1737522646260,-500.0,0.00022191,3]
[349938455,1737522646270,-763.48,0.00022191,3]
[349938456,1737522646279,-396.12856023,0.00022191,3]
[349938457,1737522646288,-500.0,0.00022191,3]
[349938458,1737522646297,-566.44,0.00022191,3]
[349938459,1737522646306,-500.0,0.00022191,3]
[349938460,1737522646315,-500.0,0.00022191,3]
[349938461,1737522646326,-500.0,0.00022191,3]
[349938462,1737522646335,-500.0,0.00022191,3]
[349938463,1737522646345,-500.0,0.00022191,3]
[349938464,1737522646354,-500.0,0.00022191,3]
[349938465,1737522646364,-500.0,0.00022191,3]
[349938466,1737522646374,-500.0,0.00022191,3]
[349938467,1737522646383,-535.06,0.00022191,3]
[349938468,1737522646392,-500.0,0.00022191,3]
[349938469,1737522646402,-500.0,0.00022191,3]
[349938470,1737522646411,-500.0,0.00022191,3]
[349938471,1737522646420,-638.34,0.00022191,3]
[349938472,1737522646430,-500.0,0.00022191,3]
[349938473,1737522646439,-500.0,0.00022191,3]
[349938474,1737522646449,-882.26,0.00022191,3]
[349938475,1737522646459,-500.0,0.00022191,3]
[349938477,1737522646468,-500.0,0.00022191,3]
[349938479,1737522646477,-500.0,0.00022191,3]
[349938481,1737522646486,-1091.1,0.00022191,3]
[349938483,1737522646496,-500.0,0.00022191,3]
[349938484,1737522646516,-649.55,0.00022191,3]
[349938486,1737522646527,-500.0,0.00022191,3]
[349938488,1737522646538,-500.0,0.00022191,3]
[349938490,1737522646548,-500.0,0.00022191,3]
[349938492,1737522646558,-500.0,0.00022191,3]
[349938493,1737522646568,-500.0,0.00022191,3]
[349938495,1737522646579,-500.0,0.00022191,3]
[349938497,1737522646588,-500.0,0.00022191,3]
[349938498,1737522646598,-500.0,0.00022191,3]
[349938500,1737522646608,-500.0,0.00022191,3]
[349938502,1737522646618,-551.09,0.00022191,3]
[349938504,1737522646628,-500.0,0.00022191,3]
[349938506,1737522646639,-500.0,0.00022191,3]
[349938508,1737522646649,-500.0,0.00022191,3]
[349938510,1737522646659,-700.49,0.00022191,3]
[349938512,1737522646669,-500.0,0.00022191,3]
[349938514,1737522646679,-500.0,0.00022191,3]
[349938515,1737522646689,-1397.0,0.00022191,3]
[349938516,1737522646700,-500.0,0.00022191,3]
[349938517,1737522646710,-500.0,0.00022191,3]
[349938518,1737522646720,-783.27,0.00022191,3]
[349938519,1737522646730,-951.62,0.00022191,3]
[349938520,1737522646740,-500.0,0.00022191,3]
[349938521,1737522646750,-500.0,0.00022191,3]
[349938522,1737522646760,-500.0,0.00022191,3]
[349938523,1737522646770,-500.0,0.00022191,3]
[349938524,1737522646780,-500.0,0.00022191,3]
[349938525,1737522646790,-500.0,0.00022191,3]
[349938526,1737522646800,-500.0,0.00022191,3]
[349938527,1737522646810,-500.0,0.00022191,3]
[349938528,1737522646820,-502.62,0.00022191,3]
[349938529,1737522646830,-500.0,0.00022191,3]
[349938530,1737522646840,-500.0,0.00022191,3]
[349938531,1737522646853,-150.32742474,0.00022191,3]
[349938532,1737522646863,-500.0,0.00022191,3]
[349938533,1737522646873,-500.0,0.00022191,3]
[349938534,1737522646883,-2620.52,0.00022191,3]
[349938535,1737522646894,-500.0,0.00022191,3]
[349938536,1737522646904,-500.0,0.00022191,3]
[349938537,1737522646913,-500.0,0.00022191,3]
[349938538,1737522646925,-500.0,0.00022191,3]
[349938539,1737522646936,-500.0,0.00022191,3]
[349938540,1737522646946,-500.0,0.00022191,3]
[349938541,1737522646957,-500.0,0.00022191,3]
[349938542,1737522646967,-895.22,0.00022191,3]
[349938543,1737522646977,-500.0,0.00022191,3]
[349938544,1737522646987,-859.69,0.00022191,3]
[349938545,1737522646996,-500.0,0.00022191,3]
[349938546,1737522647006,-500.0,0.00022191,3]
[349938547,1737522647015,-1368.61,0.00022191,3]
[349938548,1737522647025,-500.0,0.00022191,3]
[349938549,1737522647035,-500.0,0.00022191,3]
[349938550,1737522647044,-499.99879548,0.00022191,3]
[349938551,1737522647055,-500.0,0.00022191,3]
[349938552,1737522647064,-1432.18,0.00022191,3]
[349938553,1737522647074,-606.42,0.00022191,3]
[349938554,1737522647084,-500.0,0.00022191,3]
[349938555,1737522647094,-500.0,0.00022191,3]
[349938556,1737522647103,-471.72543951,0.00022191,3]
[349938557,1737522647113,-500.0,0.00022191,3]
[349938558,1737522647123,-500.0,0.00022191,3]
[349938559,1737522647132,-928.6,0.00022191,3]
[349938560,1737522647142,-500.0,0.00022191,3]
[349938561,1737522647151,-533.38,0.00022191,3]
[349938562,1737522647161,-585.75,0.00022191,3]
[349938563,1737522647171,-500.0,0.00022191,3]
[349938564,1737522647180,-812.47,0.00022191,3]
[349938565,1737522647269,-500.0,0.00022191,3]
[349938566,1737522647279,-500.0,0.00022191,3]
[349938567,1737522647288,-1303.23,0.00022191,3]
[349938568,1737522647299,-500.0,0.00022191,3]
[349938569,1737522647309,-500.0,0.00022191,3]
[349938570,1737522647319,-964.39,0.00022191,3]
[349938571,1737522647333,-1410.5,0.00022191,3]
[349938572,1737522647344,-500.0,0.00022191,3]
[349938573,1737522647354,-500.0,0.00022191,3]
[349938574,1737522647364,-500.0,0.00022191,3]
[349938575,1737522647374,-799.23,0.00022191,3]
[349938576,1737522647384,-500.0,0.00022191,3]
[349938577,1737522647393,-500.0,0.00022191,3]
[349938578,1737522647402,-764.42,0.00022191,3]